bitfinex/quotes_ETHUSD_20250222
["timestamp","ask_amount","ask_price","bid_price","bid_amount"]
[1740213910635,4.47258,2690.8,2690.6,0.27801966]
[1740213910980,0.7562,2690.8,2690.6,0.27801966]
[1740213911280,5.32,2691.0,2690.6,3.71663]
[1740213911432,5.32,2691.0,2690.7,3.71648]
[1740213911633,5.32,2691.0,2690.6,3.71663]
[1740213912684,9.03609,2691.0,2690.6,3.71663]
[1740213912973,3.71625,2690.9,2690.4,3.99016488]
[1740213913288,0.8269,2690.8,2690.4,0.27326488]
[1740213913449,3.71678,2690.5,2690.1,3.71724]
[1740213913778,0.8269,2690.8,2690.2,3.71718]
[1740213913779,3.71657,2690.7,2690.2,3.71718]
[1740213913985,5.067137,2690.9,2690.0,0.5288]
[1740213913986,0.8269,2690.4,2690.0,4.24625]
[1740213914283,0.8269,2690.4,2690.0,5.042622]
[1740213914582,0.8269,2690.4,2690.0,3.71745]
[1740213914790,4.54383,2690.4,2689.9,3.98247]
[1740213914936,4.54383,2690.4,2690.1,0.27828096]
[1740213915565,0.8269,2690.4,2690.1,0.27828096]
[1740213915765,0.8269,2690.4,2690.1,3.99559096]
[1740213916366,0.8269,2690.4,2690.1,4.80489571]
[1740213916595,0.8269,2690.4,2690.2,0.27828096]
[1740213916891,0.8269,2690.4,2690.3,3.71705]
[1740213917095,5.32,2690.6,2690.4,3.71684]
[1740213917268,5.32,2690.6,2690.5,3.71678]
[1740213917468,5.32,2690.6,2690.5,4.486522]
[1740213918719,5.32,2690.6,2690.5,0.769742]
[1740213919023,5.32,2690.6,2690.5,1.04802296]
[1740213919322,5.32,2690.6,2690.5,0.27828096]
[1740213919857,5.32,2690.6,2690.5,4.04279988]
[1740213920170,6.1469,2690.9,2690.5,0.32601988]
[1740213920472,9.86314,2690.9,2690.5,4.04278988]
[1740213921313,6.1469,2690.9,2690.5,4.04278988]
[1740213921607,6.1469,2690.9,2690.5,0.32601988]
[1740213921815,9.8632,2690.9,2690.5,0.32601988]
[1740213922315,3.71664,2690.6,2690.5,0.04773892]
[1740213922815,3.71664,2690.6,2690.1,4.24603]
[1740213923011,3.71638,2690.8,2690.5,0.04773892]
[1740213923211,3.71658,2690.7,2690.2,3.71713]
[1740213923688,3.71658,2690.7,2690.3,0.04773892]
[1740213924015,3.71658,2690.7,2690.2,3.99530213]
[1740213924198,3.71658,2690.7,2690.4,0.04773892]
[1740213924517,3.71658,2690.7,2690.5,0.04773892]
[1740213924901,3.71658,2690.7,2690.3,0.27817213]
[1740213925100,3.71658,2690.7,2690.4,0.04773892]
[1740213926228,9.03658,2690.7,2690.4,0.04773892]
[1740213926584,9.03658,2690.7,2690.2,3.71713]
[1740213926783,9.03658,2690.7,2690.5,0.04773892]
[1740213927093,9.03658,2690.7,2690.6,0.04773892]
[1740213927307,9.03658,2690.7,2690.2,3.71713]
[1740213927536,4.50444,2690.6,2690.3,0.04783042]
[1740213927917,4.50444,2690.6,2690.2,3.71713]
[1740213928244,4.50444,2690.6,2690.3,0.04783042]
[1740213928452,4.50444,2690.6,2690.2,3.71713]
[1740213928682,4.50444,2690.6,2690.3,0.04783042]
[1740213928807,4.50444,2690.6,2690.2,3.71713]
[1740213929005,4.50444,2690.6,2690.3,0.04783042]
[1740213929211,4.50444,2690.6,2690.1,4.24612]
[1740213929454,4.50444,2690.6,2690.2,3.76501042]
[1740213930184,0.7878,2690.6,2690.2,3.76501042]
[1740213930861,4.50451,2690.6,2690.2,0.04783042]
[1740213931256,4.50451,2690.6,2690.2,3.76499042]
[1740213931762,4.50451,2690.6,2690.2,0.04783042]
[1740213932160,8.22127,2690.6,2690.2,0.04783042]
[1740213932455,3.71699,2690.4,2690.2,0.04783042]
[1740213932753,3.71699,2690.4,2690.0,0.27295822]
[1740213932905,9.03699,2690.4,2690.3,0.090663]
[1740213933105,9.03699,2690.4,2690.0,0.27295822]
[1740213933336,9.03699,2690.4,2690.1,0.090663]
[1740213936108,3.71719,2690.2,2690.1,0.090663]
[1740213936294,3.71719,2690.2,2689.7,3.264]
[1740213936455,3.71719,2690.2,2689.8,0.09084608]
[1740213936661,3.71719,2690.2,2689.7,6.71787]
[1740213936864,3.71719,2690.2,2689.8,0.09084608]
[1740213937111,3.71719,2690.2,2689.7,6.71787]
[1740213937294,3.71726,2690.2,2689.8,0.09084608]
[1740213937600,3.71726,2690.2,2689.7,4.42592983]
[1740213937806,3.71726,2690.2,2689.9,0.09127765]
[1740213937978,3.71726,2690.2,2689.9,0.11636942]
[1740213938172,3.71726,2690.2,2690.0,0.09127765]
[1740213938375,7.43456,2690.2,2690.0,0.09127765]
[1740213939603,3.71726,2690.2,2689.8,4.0002488]
[1740213939785,3.71726,2690.2,2690.1,0.09127765]
[1740213939982,3.71726,2690.2,2689.8,0.2825088]
[1740213940198,3.71726,2690.2,2690.1,0.09127765]
[1740213940401,3.71726,2690.2,2689.9,0.27839622]
[1740213940621,3.71726,2690.2,2690.1,0.09127765]
[1740213941211,3.71726,2690.2,2689.9,0.27839622]
[1740213941212,9.03726,2690.2,2689.9,0.27839622]
[1740213941373,9.03726,2690.2,2690.1,0.09127765]
[1740213941573,9.03726,2690.2,2689.8,0.2825088]
[1740213941815,9.03726,2690.2,2690.1,0.09127765]
[1740213942012,9.03726,2690.2,2689.8,0.2825088]
[1740213942187,9.03726,2690.2,2690.1,0.09127765]
[1740213942382,9.03726,2690.2,2689.8,0.2825088]
[1740213942593,9.03726,2690.2,2690.1,0.09127765]
[1740213943098,9.03726,2690.2,2689.8,0.2825088]
[1740213943299,9.03726,2690.2,2689.9,0.20764756]
[1740213943603,3.71735,2690.1,2689.9,0.20764756]
[1740213943771,0.8081,2690.0,2689.9,0.48619057]
[1740213944617,0.8081,2690.0,2689.9,0.20764756]
[1740213945115,0.8081,2690.0,2689.9,0.48616903]
[1740213947101,0.8081,2690.0,2689.9,0.36979912]
[1740213947574,0.8081,2690.0,2689.9,0.09127765]
[1740213947918,0.8081,2690.0,2689.7,0.28377713]
[1740213948119,0.8081,2690.0,2689.8,0.09157845]
[1740213948324,0.8081,2690.0,2689.7,0.28377713]
[1740213948474,0.8081,2690.0,2689.8,0.09157845]
[1740213948675,0.8081,2690.0,2689.7,0.28377713]
[1740213948874,0.8081,2690.0,2689.8,0.09157845]
[1740213949217,0.8081,2690.0,2689.7,0.28377713]
[1740213949418,0.8081,2690.0,2689.9,0.09157845]
[1740213949621,0.8081,2690.0,2689.7,0.28377713]
[1740213949773,0.8081,2690.0,2689.9,0.09157845]
[1740213949974,0.8081,2690.0,2689.7,0.28377713]
[1740213950621,0.8081,2690.0,2689.8,0.09157845]
[1740213950921,0.8081,2690.0,2689.7,0.28377713]
[1740213951222,5.32,2690.2,2689.8,3.80923845]
[1740213951522,5.32,2690.2,2690.1,3.71733]
[1740213951691,5.32,2690.2,2690.1,0.09187927]
[1740213951892,5.32,2690.2,2690.0,3.71746]
[1740213952107,5.32,2690.2,2690.1,0.09187927]
[1740213952312,5.32,2690.2,2689.9,7.71361461]
[1740213952483,5.32,2690.2,2690.0,0.09187927]
[1740213952820,5.32,2690.2,2690.0,3.80926927]
[1740213953030,5.32,2690.3,2690.0,3.80926927]
[1740213953325,5.32,2690.3,2690.1,3.71731]
[1740213953511,5.32,2690.3,2690.2,3.71719]
[1740213953706,5.32,2690.3,2690.2,0.09187927]
[1740213954132,5.32,2690.3,2689.8,0.2638]
[1740213954315,5.32,2690.3,2689.9,3.80934927]
[1740213954716,5.32,2690.3,2689.9,0.09187927]
[1740213954915,0.7898,2690.2,2689.9,0.11636826]
[1740213955122,0.7898,2690.2,2690.0,0.09187927]
[1740213956846,0.7898,2690.2,2689.9,3.71758]
[1740213957005,0.7898,2690.2,2690.1,0.09168308]
[1740213957410,0.7898,2690.2,2689.9,3.71751]
[1740213957646,0.7898,2690.2,2690.1,0.09168308]
[1740213957847,0.7898,2690.2,2689.9,3.71751]
[1740213958151,0.7898,2690.2,2689.7,11.2788754]
[1740213958357,0.7898,2690.2,2689.8,0.09168308]
[1740213958653,0.7898,2690.2,2689.8,0.37026931]
[1740213958820,6.1098,2690.2,2689.8,3.99629623]
[1740213959152,6.1098,2690.2,2689.9,0.20810656]
[1740213959454,8.202179,2690.2,2689.9,0.20810656]
[1740213959808,8.202179,2690.2,2689.9,0.48669279]
[1740213960135,8.202179,2690.2,2689.9,0.37032162]
[1740213961058,8.202179,2690.2,2689.9,0.09173539]
[1740213961440,8.202179,2690.2,2689.7,4.00159713]
[1740213961608,6.1098,2690.2,2690.0,0.09173539]
[1740213961813,0.8308,2690.1,2689.6,3.71799]
[1740213962043,0.8308,2690.1,2689.8,0.27875566]
[1740213963053,4.54815,2690.1,2689.8,0.27875566]
[1740213963711,4.54815,2690.1,2689.5,0.27587741]
[1740213963918,9.624132,2690.1,2689.5,0.27587741]
[1740213964228,4.49447,2690.0,2689.5,0.27587741]
[1740213964561,4.49447,2690.0,2689.6,0.09186622]
[1740213964722,4.49447,2690.0,2689.6,0.48702246]
[1740213964911,9.81447,2690.0,2689.6,0.48702246]
[1740213965652,10.9317692,2690.0,2689.6,0.48702246]
[1740213965955,7.2142992,2690.0,2689.7,0.11638462]
[1740213966363,7.2142992,2690.0,2689.8,0.09186622]
[1740213966973,7.2142992,2690.0,2689.7,0.11638462]
[1740213967271,7.2142992,2690.0,2689.9,0.09186622]
[1740213967752,7.2142992,2690.0,2689.5,3.99401741]
[1740213967937,7.2142992,2690.0,2689.6,0.09186622]
[1740213969188,4.94662612,2689.9,2689.6,0.09186622]
[1740213969574,1.22901612,2689.9,2689.4,3.82349827]
[1740213969773,10.26663612,2689.9,2689.4,3.82349827]
[1740213969976,3.7179,2689.7,2689.5,0.09186622]
[1740213970180,4.49502,2689.6,2689.5,0.09186622]
[1740213970484,3.71817,2689.5,2689.3,0.2787151]
[1740213970791,1.598292,2689.6,2689.3,0.2787151]
[1740213970943,0.777,2689.6,2689.3,0.2787151]
[1740213971842,0.777,2689.6,2689.3,3.71832]
[1740213972074,0.777,2689.6,2689.4,3.7182]
[1740213972240,5.32,2689.9,2689.4,3.55949827]
[1740213972458,5.32,2689.9,2689.8,3.71774]
[1740213973762,5.32,2690.0,2689.8,3.71774]
[1740213974174,5.32,2690.0,2689.6,0.2638]
[1740213974364,5.32,2690.0,2689.9,3.71761]
[1740213976294,5.32,2690.0,2689.8,3.71763]
[1740213976497,5.32,2690.0,2689.9,3.71761]
[1740213978603,0.777,2690.2,2689.9,0.743524]
[1740213978778,6.0734,2690.5,2690.3,3.71697]
[1740213979101,6.0734,2690.5,2690.4,3.71691]
[1740213979659,6.0734,2690.5,2690.4,3.80605776]
[1740213982099,6.0734,2690.5,2690.4,0.08914776]
[1740213983157,6.0734,2690.5,2690.4,3.80605776]
[1740213983498,5.32,2690.9,2690.8,3.71636]
[1740213983682,5.32,2690.9,2690.8,3.98016]
[1740213984088,5.32,2690.9,2690.8,4.06882378]
[1740213984284,5.32,2690.9,2690.8,4.34683553]
[1740213984701,5.32,2691.2,2690.8,0.63047553]
[1740213985014,5.32,2691.6,2691.4,3.71553]
[1740213985311,5.32,2691.8,2691.4,3.71553]
[1740213986105,5.32,2691.8,2691.5,3.80125482]
[1740213986303,5.32,2691.8,2691.5,3.71535]
[1740213986602,5.32,2691.8,2691.6,0.08590482]
[1740213988200,0.7644,2691.7,2691.6,0.08590482]
[1740213988562,0.7644,2691.7,2691.2,4.24556]
[1740213988762,0.7644,2691.7,2691.3,0.08590482]
[1740213988959,0.7644,2691.7,2691.2,4.24559]
[1740213989208,0.7644,2691.7,2691.3,0.08590482]
[1740213989704,0.7644,2691.7,2691.2,4.24559]
[1740213989878,0.7644,2691.7,2691.4,0.08590482]
[1740213990077,0.7644,2691.7,2691.2,4.24559]
[1740213990280,0.7644,2691.7,2691.5,0.08590482]
[1740213990808,0.7644,2691.7,2691.6,0.08590482]
[1740213990981,0.7644,2691.7,2691.3,3.71558]
[1740213991174,0.7644,2691.7,2691.4,0.08590482]
[1740213991607,6.0844,2691.7,2691.4,0.08590482]
[1740213992431,5.32,2691.7,2691.5,3.71537]
[1740213992800,5.32,2691.7,2691.6,3.80075968]
[1740213993511,5.32,2691.7,2691.6,0.08549968]
[1740213994132,5.32,2691.7,2691.5,3.71539]
[1740213994297,5.32,2691.7,2691.6,0.08549968]
[1740213995187,5.32,2691.7,2691.5,3.71539]
[1740213995387,5.32,2691.7,2691.6,0.08549968]
[1740213997211,5.32,2691.7,2691.6,3.80075968]
[1740213997439,5.32,2691.7,2691.6,4.06455968]
[1740213997626,5.32,2691.9,2691.7,3.71504]
[1740213998133,5.32,2691.9,2691.8,3.71498]
[1740213998295,5.32,2691.9,2691.8,3.80047968]
[1740213998491,5.32,2692.1,2691.9,3.71483]
[1740213999254,5.32,2692.1,2692.0,0.08478097]
[1740213999405,5.32,2692.1,2691.8,3.71497]
[1740213999607,5.32,2692.1,2692.0,0.08478097]
[1740213999822,5.32,2692.1,2691.9,3.71477]
[1740214000025,5.32,2692.1,2692.0,0.08478097]
[1740214000449,5.32,2692.1,2692.0,3.79949097]
[1740214000743,5.32,2692.2,2692.1,3.71457]
[1740214001262,5.32,2692.2,2692.1,3.79935097]
[1740214003138,5.32,2692.2,2692.1,0.08478097]
[1740214003735,5.32,2692.2,2691.9,3.71472]
[1740214003914,5.32,2692.2,2692.1,0.08478097]
[1740214004453,5.32,2692.2,2691.9,3.71472]
[1740214004659,5.32,2692.2,2692.1,0.08478097]
[1740214004812,5.32,2692.2,2691.9,3.71472]
[1740214005014,5.32,2692.2,2692.1,0.08478097]
[1740214005217,5.32,2692.2,2691.9,3.71472]
[1740214005415,5.32,2692.2,2692.1,0.08478097]
[1740214005614,5.32,2692.2,2691.9,3.71472]
[1740214005814,5.32,2692.2,2692.1,0.08478097]
[1740214006055,5.32,2692.2,2691.9,3.71472]
[1740214006259,5.32,2692.2,2692.1,0.84165077]
[1740214006468,5.32,2692.4,2692.1,0.7568698]
[1740214006637,5.32,2692.4,2692.1,0.84165077]
[1740214010685,0.7694,2692.3,2692.1,0.84165077]
[1740214010974,7.48383,2692.2,2692.1,0.08478097]
[1740214011156,0.7694,2691.7,2691.1,0.2638]
[1740214011353,6.0894,2691.7,2691.1,0.54102087]
[1740214011557,6.0894,2691.7,2691.2,0.08130229]
[1740214012064,5.32,2691.7,2691.5,3.71536]
[1740214012270,5.32,2691.7,2691.3,3.71557]
[1740214012432,5.32,2691.7,2691.2,0.27759496]
[1740214012775,5.32,2691.7,2691.4,0.08130229]
[1740214012970,5.32,2691.7,2691.2,3.99339496]
[1740214013545,5.32,2691.7,2691.3,0.08130229]
[1740214013746,5.32,2691.7,2691.3,3.79697229]
[1740214013971,5.32,2691.7,2691.3,0.40607723]
[1740214014134,5.32,2691.7,2691.5,3.71533]
[1740214014469,5.32,2691.7,2691.4,3.71544]
[1740214014660,5.32,2691.7,2691.6,3.79656229]
[1740214014860,5.32,2691.7,2691.6,3.71526]
[1740214015056,5.32,2691.7,2691.6,3.79656229]
[1740214015257,5.32,2691.7,2691.6,0.08130229]
[1740214015449,5.32,2691.8,2691.6,0.08130229]
[1740214015767,5.32,2691.8,2691.5,3.7153]
[1740214015926,5.32,2691.8,2691.7,0.08130229]
[1740214016446,5.32,2691.8,2691.4,3.71544]
[1740214016664,5.32,2691.8,2691.7,0.08130229]
[1740214016967,5.32,2691.8,2691.4,7.43088]
[1740214017166,5.32,2691.8,2691.7,0.08130229]
[1740214017340,5.32,2691.8,2691.4,7.4309]
[1740214017542,5.32,2691.8,2691.7,0.08130229]
[1740214017772,5.32,2691.8,2691.4,3.71544]
[1740214017974,5.32,2691.8,2691.7,0.08130229]
[1740214018579,5.32,2691.8,2691.5,3.71537]
[1740214018759,5.32,2691.8,2691.7,0.08130229]
[1740214018959,0.8014,2691.7,2691.0,3.71604]
[1740214019136,4.51653,2691.7,2691.0,3.71604]
[1740214019335,0.8014,2691.7,2691.0,3.71599]
[1740214019536,0.8014,2691.7,2690.8,3.98006]
[1740214019840,0.8014,2691.7,2691.2,3.71573]
[1740214021080,0.8014,2691.7,2691.0,3.71599]
[1740214021448,0.8014,2691.7,2691.1,3.71593]
[1740214021650,5.32,2691.6,2691.1,3.71593]
[1740214021952,0.8014,2691.5,2691.2,0.11631364]
[1740214022276,0.61214,2691.4,2691.2,0.11631364]
[1740214023768,0.61214,2691.4,2690.9,3.99428918]
[1740214023963,0.8014,2691.5,2690.9,3.99428918]
[1740214024355,0.8014,2691.5,2690.9,3.71622]
[1740214024689,0.8014,2691.5,2691.0,0.08246525]
[1740214026010,3.71563,2691.4,2691.0,0.08246525]
[1740214026218,0.7654,2691.3,2690.6,0.2638]
[1740214026385,8.19693,2691.3,2691.1,0.07996468]
[1740214026572,4.48116,2691.3,2690.5,3.71678]
[1740214026767,0.50933,2691.2,2690.6,0.08001691]
[1740214026969,5.32,2691.1,2690.6,0.08001691]
[1740214028713,0.7654,2691.0,2690.6,0.08001691]
[1740214029070,0.7654,2691.0,2690.4,3.9807]
[1740214029270,0.7654,2691.0,2690.7,0.08038262]
[1740214029484,0.60854,2690.9,2690.4,3.7169]
[1740214029718,0.7654,2691.0,2690.8,0.08038262]
[1740214030015,0.7654,2691.0,2690.9,0.08038262]
[1740214030391,0.7654,2691.0,2690.5,3.71677]
[1740214030596,0.7654,2691.0,2690.6,0.08038262]
[1740214031684,0.7654,2691.0,2690.4,3.71691]
[1740214032022,1.424873,2691.0,2690.4,3.71691]
[1740214032219,1.424873,2691.0,2690.5,0.08038262]
[1740214033111,5.32,2690.9,2690.5,0.08038262]
[1740214038741,5.32,2690.9,2690.5,3.79713262]
[1740214041752,5.32,2690.9,2690.5,3.79707262]
[1740214042050,5.32,2690.9,2690.5,7.51378262]
[1740214042354,5.32,2690.9,2690.6,3.71661]
[1740214042836,5.32,2690.9,2690.7,0.08080058]
[1740214044549,5.9944873,2690.9,2690.7,0.08080058]
[1740214044757,5.9944873,2690.9,2690.5,3.71676]
[1740214044950,5.9944873,2690.9,2690.8,0.08080058]
[1740214045164,5.9944873,2690.9,2690.5,3.71676]
[1740214045379,5.9944873,2690.9,2690.8,0.08080058]
[1740214045580,5.9944873,2690.9,2690.5,3.71676]
[1740214045786,5.32,2690.9,2690.8,0.08080058]
[1740214045985,5.32,2690.9,2690.7,3.71644]
[1740214046170,5.32,2690.9,2690.8,0.08080058]
[1740214046538,5.32,2690.9,2690.6,3.71663]
[1740214046777,5.32,2690.9,2690.8,0.08080058]
[1740214047082,5.32,2690.9,2690.8,3.79716058]
[1740214047241,5.32,2690.9,2690.8,3.71636]
[1740214047441,5.32,2690.9,2690.8,3.79716058]
[1740214049102,5.32,2690.9,2690.8,0.08080058]
[1740214051175,5.32,2691.0,2690.8,0.08080058]
[1740214051379,5.32,2691.0,2690.8,3.79714058]
[1740214055283,5.32,2691.0,2690.9,3.71622]
[1740214055844,5.32,2691.0,2690.9,3.79696833]
[1740214057143,5.32,2691.2,2690.9,4.07549563]
[1740214057955,5.32,2691.2,2691.0,3.71608]
[1740214058303,5.32,2691.2,2690.7,3.7164]
[1740214058609,5.32,2691.2,2690.9,3.71615]
[1740214058814,5.32,2691.2,2691.0,0.08074833]
[1740214059044,6.732594,2691.2,2691.0,0.08074833]
[1740214059438,5.32,2691.2,2691.1,3.71595]
[1740214059805,5.32,2691.2,2691.1,3.79669833]
[1740214060001,0.8153,2691.8,2691.5,3.7154]
[1740214060208,6.1353,2691.8,2691.6,3.71519]
[1740214060457,6.1353,2691.8,2691.7,0.08069608]
[1740214061661,6.1353,2691.8,2691.6,3.71523]
[1740214061956,6.1353,2691.8,2691.7,0.08034344]
[1740214062260,6.1353,2691.8,2691.6,3.71523]
[1740214062406,6.1353,2691.8,2691.7,0.08034344]
[1740214064320,6.1353,2691.8,2691.7,3.79546344]
[1740214064525,6.1353,2691.8,2691.7,0.08034344]
[1740214064937,6.1353,2691.8,2691.6,3.71523]
[1740214065157,6.1353,2691.8,2691.7,0.08034344]
[1740214065914,6.1353,2691.8,2691.5,3.7153]
[1740214066113,6.1353,2691.8,2691.7,0.81142617]
[1740214066310,6.1353,2691.8,2691.7,0.73108273]
[1740214066510,6.1353,2691.8,2691.7,0.81142617]
[1740214067987,7.48683,2691.8,2691.7,0.81142617]
[1740214068638,7.48683,2691.8,2691.7,0.73108273]
[1740214068839,7.48683,2691.8,2691.7,0.81082538]
[1740214069239,11.15921,2691.8,2691.7,0.07974265]
[1740214069571,0.7727,2691.5,2690.7,0.264]
[1740214069753,0.7727,2691.3,2690.7,0.264]
[1740214070083,0.7727,2691.3,2690.8,3.79311729]
[1740214074193,0.7727,2691.3,2690.8,0.07675729]
[1740214074791,5.32,2691.2,2690.8,0.07675729]
[1740214076300,5.32,2691.2,2690.8,3.79301729]
[1740214076996,5.32,2691.2,2690.8,7.50930729]
[1740214077159,5.32,2691.2,2690.8,3.79301729]
[1740214078829,5.32,2691.2,2690.8,7.50928729]
[1740214078997,5.32,2691.2,2690.8,3.79301729]
[1740214079344,5.32,2691.2,2690.9,3.71622]
[1740214079689,5.32,2691.2,2691.0,0.07713603]
[1740214081344,5.9741506,2691.2,2690.8,7.43258]
[1740214081506,5.32,2691.2,2691.1,0.0775931]
[1740214081705,5.32,2691.2,2690.9,3.71618]
[1740214081930,5.32,2691.2,2691.1,0.0775931]
[1740214082138,5.32,2691.2,2690.9,3.71618]
[1740214082303,5.32,2691.2,2691.1,0.0775931]
[1740214082503,5.32,2691.2,2690.9,3.71618]
[1740214082718,5.32,2691.2,2691.1,0.0775931]
[1740214082918,5.32,2691.2,2690.9,3.71618]
[1740214083119,5.32,2691.2,2691.1,0.0775931]
[1740214083318,5.9741506,2691.2,2690.8,3.71633]
[1740214083518,5.32,2691.2,2691.1,0.0775931]
[1740214084014,5.32,2691.2,2690.7,3.98046]
[1740214084221,5.32,2691.2,2690.8,0.3413931]
[1740214084409,5.32,2691.2,2691.1,3.71595]
[1740214084609,5.32,2691.2,2691.1,3.79371291]
[1740214085506,5.32,2691.2,2691.1,4.8084932]
[1740214086349,0.74153756,2691.6,2691.5,3.7154]
[1740214086554,5.32,2691.7,2691.6,3.71526]
[1740214086849,5.32,2691.7,2691.6,3.79282698]
[1740214088563,5.32,2692.0,2691.9,3.71484]
[1740214088776,5.32,2692.0,2691.9,3.97864]
[1740214089094,5.32,2692.3,2692.2,3.71443]
[1740214089290,5.32,2692.5,2692.3,3.7142]
[1740214089706,5.32,2692.5,2692.4,0.07690098]
[1740214090261,5.79106374,2692.5,2692.4,0.07690098]
[1740214090461,5.79106374,2692.5,2692.1,3.71454]
[1740214090694,5.32,2692.5,2692.4,0.07690098]
[1740214090902,5.32,2692.5,2692.2,3.71442]
[1740214091205,5.32,2692.5,2692.4,0.07690098]
[1740214091371,5.32,2692.5,2692.2,3.71442]
[1740214091576,5.32,2692.5,2692.4,0.07690098]
[1740214091786,5.32,2692.5,2692.2,3.71442]
[1740214092264,5.32,2692.5,2692.3,0.07690098]
[1740214092761,5.32,2692.5,2692.2,3.71435]
[1740214092958,5.32,2692.5,2692.4,0.07690098]
[1740214093162,5.32,2692.5,2692.2,3.71435]
[1740214093395,5.32,2692.5,2692.4,0.07690098]
[1740214093700,5.32,2692.8,2692.5,3.71392]
[1740214093997,5.32,2692.8,2692.7,3.71374]
[1740214094710,5.32,2692.8,2692.7,3.78816063]
[1740214095670,6.1016,2693.1,2692.7,0.82462369]
[1740214095868,6.1016,2693.1,2692.8,7.42705]
[1740214096087,6.1016,2693.1,2692.8,3.71352]
[1740214096498,6.1016,2693.1,2692.9,0.07442063]
[1740214097332,5.32,2693.1,2693.0,3.71333]
[1740214097487,5.32,2693.1,2692.8,3.71352]
[1740214097682,5.32,2693.1,2693.0,0.07393789]
[1740214097683,6.59,2693.1,2693.0,0.07393789]
[1740214097904,6.59,2693.1,2692.4,3.71412]
[1740214098131,6.59,2693.1,2692.1,3.71448]
[1740214098322,3.71383,2692.7,2692.5,0.07393789]
[1740214098633,3.71383,2692.7,2691.9,3.71477]
[1740214098783,0.7683,2692.8,2692.0,3.71463]
[1740214098987,4.48192,2692.8,2692.0,3.78592725]
[1740214099533,0.7683,2692.8,2692.0,0.07129725]
[1740214099699,0.448185,2692.7,2692.1,3.71455]
[1740214100113,0.448185,2692.7,2692.2,0.06865661]
[1740214100314,0.448185,2692.7,2692.2,3.78306661]
[1740214100988,0.448185,2692.7,2692.2,0.06865661]
[1740214101186,0.448185,2692.7,2692.3,3.71421]
[1740214101524,5.768185,2692.7,2692.4,0.06865661]
[1740214101725,5.32,2692.7,2692.4,0.06865661]
[1740214103218,5.32,2692.7,2692.6,3.71388]
[1740214103583,5.32,2692.7,2692.6,3.78253661]
[1740214103780,5.32,2692.7,2692.6,0.06865661]
[1740214104214,5.32,2692.7,2692.3,7.69227]
[1740214104433,5.32,2692.7,2692.6,0.06894359]
[1740214104595,5.32,2692.7,2692.3,3.97802]
[1740214104795,5.32,2692.7,2692.6,0.06894359]
[1740214105037,6.152,2692.7,2692.3,7.69224]
[1740214105195,6.152,2692.7,2692.6,0.06894359]
[1740214105395,6.152,2692.7,2692.3,3.97802]
[1740214105396,6.152,2692.7,2692.3,7.69222]
[1740214105644,6.152,2692.7,2692.3,7.42842]
[1740214106028,6.152,2692.7,2692.4,3.78309359]
[1740214106637,5.32,2692.7,2692.4,0.06894359]
[1740214107001,5.32,2692.7,2692.6,0.74618478]
[1740214107394,5.32,2692.8,2692.6,0.74618478]
[1740214107625,5.32,2692.8,2692.6,0.81512837]
[1740214107824,5.32,2692.8,2692.6,0.06894359]
[1740214108015,6.36853,2692.8,2692.3,3.7142]
[1740214108346,6.36853,2692.8,2692.4,0.06894359]
[1740214108841,6.36853,2692.8,2692.1,3.97831]
[1740214108842,0.7648,2692.7,2692.1,7.69278]
[1740214109202,0.7648,2692.7,2692.2,0.06894359]
[1740214109620,0.7648,2692.7,2692.2,3.78336359]
[1740214109818,2.149481,2692.7,2692.2,0.06894359]
[1740214110505,2.149481,2692.7,2692.0,3.71463]
[1740214110704,2.149481,2692.7,2692.3,0.06894359]
[1740214110905,2.149481,2692.7,2692.1,3.71456]
[1740214111146,2.149481,2692.7,2692.4,0.06894359]
[1740214111347,2.149481,2692.7,2692.2,7.42875]
[1740214111521,2.149481,2692.7,2692.3,3.71427]
[1740214111722,2.149481,2692.7,2692.3,0.06894359]
[1740214111923,2.149481,2692.7,2692.2,3.71434]
[1740214112132,2.149481,2692.7,2692.4,0.06894359]
[1740214112330,2.149481,2692.7,2692.2,7.42866]
[1740214112549,2.149481,2692.7,2692.5,0.06894359]
[1740214112847,0.7469481,2692.6,2692.2,3.71431]
[1740214113016,2.149481,2692.7,2692.2,3.71431]
[1740214113416,5.32,2692.6,2692.2,3.71431]
[1740214114661,5.32,2692.6,2692.3,0.06894359]
[1740214114862,5.32,2692.6,2692.2,7.42866]
[1740214115061,5.32,2692.6,2692.3,0.06902191]
[1740214115352,5.32,2692.6,2692.3,3.71422]
[1740214115556,5.32,2692.6,2692.4,0.06902191]
[1740214116061,5.32,2692.6,2692.5,0.06902191]
[1740214120053,5.32,2692.6,2692.3,3.97808]
[1740214120238,5.32,2692.6,2692.4,0.06902191]
[1740214121162,4.52462,2692.5,2692.4,0.06902191]
[1740214121325,9.03402,2692.5,2691.6,3.71515]
[1740214121521,0.8106,2692.4,2691.8,7.42984]
[1740214121726,0.8106,2692.4,2691.9,3.71483]
[1740214122280,9.0343,2692.3,2692.0,0.06906106]
[1740214122440,3.71457,2692.1,2691.4,0.2638]
[1740214122640,0.7858,2692.2,2691.5,0.06906106]
[1740214122964,0.7858,2692.2,2691.2,0.2638]
[1740214122965,0.7858,2692.2,2692.0,3.7147]
[1740214123214,12.7,2692.3,2692.2,3.71443]
[1740214123476,5.32,2692.3,2692.2,0.06936122]
[1740214123632,5.32,2692.3,2692.0,3.71463]
[1740214123963,5.32,2692.3,2692.1,3.78391122]
[1740214124163,5.32,2692.3,2692.1,0.06936122]
[1740214124769,5.32,2692.3,2692.1,3.78384122]
[1740214125072,5.32,2692.3,2692.2,3.71443]